[Event "Is Bankasi Online Satranc Turn 17-18 YAS"]
[Site "T#646243Mustafa Kemal"]
[Date "2020.05.22"]
[Round "1"]
[White "Abdulkadirtalh76"]
[Black "Bugrahansahin14"]
[Result "1-0"]
[WhiteElo "1620"]
[BlackElo "1620"]
[Annotator "NA RC"]
[PlyCount "101"]
[EventDate "2020.05.22"]
[EventType "swiss (blitz)"]
[TimeControl "180+2"]

1. e4 {[%emt 0:00:06]} e5 {[%emt 0:00:01]} 2. f4 {[%emt 0:00:03]} exf4 {[%emt 0:00:02]} 3. d4 {[%emt 0:00:01]} Nc6 {[%emt 0:00:03]} 4. Bxf4 {[%emt 0:00:04]} Nf6 {[%emt 0:00:02]} 5. Nc3 {[%emt 0:00:06]} d5 {[%emt 0:00:12]} 6. e5 {[%emt 0:00:03]} Ne4 {[%emt 0:00:03]} 7. Nxe4 {[%emt 0:00:03]} dxe4 {[%emt 0:00:01]} 8. d5 {[%emt 0:00:02]} Nb4 {[%emt 0:00:06]} 9. Bc4 {[%emt 0:00:01]} c6 {[%emt 0:00:03]} 10. d6 {[%emt 0:00:03]} Bf5 {[%emt 0:00:42]} 11. c3 {[%emt 0:00:19]} Na6 {[%emt 0:00:15]} 12. Ne2 {[%emt 0:00:06]} b5 {[%emt 0:00:03]} 13. Bxf7+ {[%emt 0:00:07]} Kxf7 {[%emt 0:00:01]} 14. O-O {[%emt 0:00:03]} Ke8 {[%emt 0:00:04]} 15. Ng3 {[%emt 0:00:05]} Be6 {[%emt 0:00:05]} 16. Nxe4 {[%emt 0:00:04]} h6 {[%emt 0:00:10]} 17. Qf3 {[%emt 0:00:04]} g5 {[%emt 0:00:05]} 18. Qh5+ {[%emt 0:00:06]} Kd7 {[%emt 0:00:05]} 19. Bxg5 {[%emt 0:00:06]} Qb6+ {[%emt 0:00:25]} 20. Kh1 {[%emt 0:00:01]} Bg7 {[%emt 0:00:09]} 21. Rf7+ {[%emt 0:00:05]} Bxf7 {[%emt 0:00:06]} 22. Qxf7+ {[%emt 0:00:00]} Kc8 {[%emt 0:00:05]} 23. Qxg7 {[%emt 0:00:03]} Re8 {[%emt 0:00:29]} 24. h4 {[%emt 0:00:12]} Nc5 {[%emt 0:00:12]} 25. Re1 {[%emt 0:00:09]} Nxe4 {[%emt 0:00:02]} 26. Rxe4 {[%emt 0:00:03]} a5 {[%emt 0:00:05]} 27. a4 {[%emt 0:00:10]} Ra7 {[%emt 0:00:01]} 28. Qxh6 {[%emt 0:00:06]} bxa4 {[%emt 0:00:02]} 29. e6 {[%emt 0:00:05]} Qxb2 {[%emt 0:00:07]} 30. d7+ {[%emt 0:00:06]} Rxd7 {[%emt 0:00:04]} 31. exd7+ {[%emt 0:00:01]} Kxd7 {[%emt 0:00:01]} 32. Rxe8 {[%emt 0:00:03]} Kxe8 {[%emt 0:00:05]} 33. Qxc6+ {[%emt 0:00:05]} Kf7 {[%emt 0:00:02]} 34. Qf6+ {[%emt 0:00:03]} Kg8 {[%emt 0:00:01]} 35. Bh6 {[%emt 0:00:02]} Qc1+ {[%emt 0:00:03]} 36. Kh2 {[%emt 0:00:08]} Qxh6 {[%emt 0:00:09]} 37. Qxh6 {[%emt 0:00:02]} a3 {[%emt 0:00:00]} 38. Qc1 {[%emt 0:00:02]} a2 {[%emt 0:00:01]} 39. Qa1 {[%emt 0:00:01]} a4 {[%emt 0:00:01]} 40. Qxa2+ {[%emt 0:00:00]} Kg7 {[%emt 0:00:03]} 41. Qxa4 {[%emt 0:00:01]} Kf6 {[%emt 0:00:01]} 42. Qa5 {[%emt 0:00:01]} Ke6 {[%emt 0:00:01]} 43. Kg3 {[%emt 0:00:00]} Kd6 {[%emt 0:00:00]} 44. Kf4 {[%emt 0:00:00]} Kc6 {[%emt 0:00:00]} 45. h5 {[%emt 0:00:03]} Kd6 {[%emt 0:00:01]} 46. h6 {[%emt 0:00:01]} Ke6 {[%emt 0:00:00]} 47. h7 {[%emt 0:00:01]} Kf7 {[%emt 0:00:00]} 48. h8=Q {[%emt 0:00:01]} Ke7 {[%emt 0:00:01]} 49. Qh6 {[%emt 0:00:02]} Kf7 {[%emt 0:00:02]} 50. Qa7+ {[%emt 0:00:01]} Kg8 {[%emt 0:00:01]} 51. Qhg7# {[%emt 0:00:03] (Lag: Av=0.56s, max=0.9s)} 1-0

[Event "Is Bankasi Online Satranc Turn 17-18 YAS"]
[Site "T#646243Mustafa Kemal"]
[Date "2020.05.22"]
[Round "1"]
[White "Alparslanisik80"]
[Black "Ahmetemreoztur80"]
[Result "1-0"]
[WhiteElo "1620"]
[BlackElo "1620"]
[Annotator "NA RC"]
[PlyCount "55"]
[EventDate "2020.05.22"]
[EventType "swiss (blitz)"]
[TimeControl "180+2"]

1. d4 {[%emt 0:00:03]} d5 {[%emt 0:00:02]} 2. c4 {[%emt 0:00:03]} e6 {[%emt 0:00:04]} 3. Nf3 {[%emt 0:00:01]} Nf6 {[%emt 0:00:02]} 4. g3 {[%emt 0:00:01]} Be7 {[%emt 0:00:02]} 5. Bg2 {[%emt 0:00:00]} Nbd7 {[%emt 0:00:04]} 6. O-O {[%emt 0:00:00]} b6 {[%emt 0:00:01]} 7. cxd5 {[%emt 0:00:03]} exd5 {[%emt 0:00:06]} 8. Nc3 {[%emt 0:00:01]} Bb7 {[%emt 0:00:06]} 9. Qa4 {[%emt 0:00:03]} O-O {[%emt 0:00:03]} 10. Ne5 {[%emt 0:00:01]} Rc8 {[%emt 0:00:28]} 11. Nc6 {[%emt 0:00:04]} Bxc6 {[%emt 0:00:01]} 12. Qxc6 {[%emt 0:00:00]} Nb8 {[%emt 0:00:16]} 13. Qa4 {[%emt 0:00:02]} a5 {[%emt 0:00:10]} 14. Bg5 {[%emt 0:00:08]} c6 {[%emt 0:00:07]} 15. Rad1 {[%emt 0:00:12]} Qd6 {[%emt 0:00:09]} 16. a3 {[%emt 0:00:10]} Nfd7 {[%emt 0:00:29]} 17. Bf4 {[%emt 0:00:02]} Qf6 {[%emt 0:00:14]} 18. e4 {[%emt 0:00:02]} dxe4 {[%emt 0:00:07]} 19. Nxe4 {[%emt 0:00:00]} Qg6 {[%emt 0:00:05]} 20. Rfe1 {[%emt 0:00:02]} Bf6 {[%emt 0:00:05]} 21. Nxf6+ {[%emt 0:00:42]} Qxf6 {[%emt 0:00:14]} 22. b4 {[%emt 0:00:19]} axb4 {[%emt 0:00:08]} 23. axb4 {[%emt 0:00:01]} b5 {[%emt 0:00:05]} 24. Qa7 {[%emt 0:00:04]} Rfd8 {[%emt 0:00:10]} 25. d5 {[%emt 0:00:05]} cxd5 {[%emt 0:00:03]} 26. Bxd5 {[%emt 0:00:01]} Nf8 {[%emt 0:00:12]} 27. Be5 {[%emt 0:00:09]} Qa6 {[%emt 0:00:14]} 28. Qxf7+ {[%emt 0:00:03] Ahmetemreoztur80 terk eder (Lag: Av=0.63s, max=2.4s)} 1-0

[Event "Is Bankasi Online Satranc Turn 17-18 YAS"]
[Site "T#646243Mustafa Kemal"]
[Date "2020.05.22"]
[Round "1"]
[White "Emrecankaratas76"]
[Black "Tarikemretay96"]
[Result "1-0"]
[WhiteElo "1620"]
[BlackElo "1620"]
[Annotator "NA RC"]
[PlyCount "131"]
[EventDate "2020.05.22"]
[EventType "swiss (blitz)"]
[TimeControl "180+2"]

1. e4 {[%emt 0:00:02]} c6 {[%emt 0:00:01]} 2. d4 {[%emt 0:00:02]} d5 {[%emt 0:00:01]} 3. exd5 {[%emt 0:00:02]} cxd5 {[%emt 0:00:00]} 4. Nf3 {[%emt 0:00:01]} Nc6 {[%emt 0:00:01]} 5. Bb5 {[%emt 0:00:01]} a6 {[%emt 0:00:04]} 6. Be2 {[%emt 0:00:07]} Nf6 {[%emt 0:00:01]} 7. c3 {[%emt 0:00:02]} Bg4 {[%emt 0:00:03]} 8. Bg5 {[%emt 0:00:02]} e6 {[%emt 0:00:02]} 9. Nbd2 {[%emt 0:00:02]} Be7 {[%emt 0:00:06]} 10. Nf1 {[%emt 0:00:03]} h6 {[%emt 0:00:02]} 11. Bh4 {[%emt 0:00:02]} O-O {[%emt 0:00:05]} 12. Ne3 {[%emt 0:00:02]} Bxf3 {[%emt 0:00:02]} 13. Bxf3 {[%emt 0:00:00]} b5 {[%emt 0:00:03]} 14. O-O {[%emt 0:00:06]} Na5 {[%emt 0:00:04]} 15. b3 {[%emt 0:00:06]} Rc8 {[%emt 0:00:04]} 16. Qd2 {[%emt 0:00:05]} Nb7 {[%emt 0:00:19]} 17. Ng4 {[%emt 0:00:05]} Nxg4 {[%emt 0:00:04]} 18. Bxe7 {[%emt 0:00:02]} Qxe7 {[%emt 0:00:00]} 19. Bxg4 {[%emt 0:00:02]} Nd6 {[%emt 0:00:04]} 20. f3 {[%emt 0:00:17]} Rc7 {[%emt 0:00:13]} 21. Rac1 {[%emt 0:00:03]} Rfc8 {[%emt 0:00:01]} 22. Rc2 {[%emt 0:00:01]} Ne8 {[%emt 0:00:20]} 23. f4 {[%emt 0:00:08]} Nf6 {[%emt 0:00:03]} 24. Bf3 {[%emt 0:00:01]} Rc6 {[%emt 0:00:12]} 25. Re1 {[%emt 0:00:03]} Qc7 {[%emt 0:00:02]} 26. Rec1 {[%emt 0:00:02]} a5 {[%emt 0:00:08]} 27. a3 {[%emt 0:00:18]} Qb6 {[%emt 0:00:22]} 28. Kf1 {[%emt 0:00:06]} Ne4 {[%emt 0:00:05]} 29. Bxe4 {[%emt 0:00:01]} dxe4 {[%emt 0:00:00]} 30. d5 {[%emt 0:00:05]} Rd6 {[%emt 0:00:22]} 31. c4 {[%emt 0:00:04]} bxc4 {[%emt 0:00:03]} 32. bxc4 {[%emt 0:00:00]} exd5 {[%emt 0:00:07]} 33. cxd5 {[%emt 0:00:00]} Rxc2 {[%emt 0:00:01]} 34. Rxc2 {[%emt 0:00:00]} Qb1+ {[%emt 0:00:11]} 35. Rc1 {[%emt 0:00:25]} Qd3+ {[%emt 0:00:04]} 36. Qxd3 {[%emt 0:00:03]} exd3 {[%emt 0:00:00]} 37. Ke1 {[%emt 0:00:10]} Rxd5 {[%emt 0:00:02]} 38. Kd2 {[%emt 0:00:01]} Rd4 {[%emt 0:00:04]} 39. g3 {[%emt 0:00:01]} a4 {[%emt 0:00:12]} 40. Rc3 {[%emt 0:00:06]} g6 {[%emt 0:00:17]} 41. Rxd3 {[%emt 0:00:01]} Rc4 {[%emt 0:00:03]} 42. Rc3 {[%emt 0:00:02]} Rd4+ {[%emt 0:00:01]} 43. Rd3 {[%emt 0:00:02]} Rc4 {[%emt 0:00:01]} 44. Rd8+ {[%emt 0:00:02]} Kg7 {[%emt 0:00:02]} 45. Ra8 {[%emt 0:00:01]} g5 {[%emt 0:00:03]} 46. Kd3 {[%emt 0:00:06]} Rc1 {[%emt 0:00:11]} 47. fxg5 {[%emt 0:00:09]} hxg5 {[%emt 0:00:05]} 48. Rxa4 {[%emt 0:00:02]} Rh1 {[%emt 0:00:04]} 49. h4 {[%emt 0:00:02]} g4 {[%emt 0:00:06]} 50. Rxg4+ {[%emt 0:00:02]} Kh6 {[%emt 0:00:01]} 51. a4 {[%emt 0:00:01]} f5 {[%emt 0:00:04]} 52. Rg5 {[%emt 0:00:03]} f4 {[%emt 0:00:03]} 53. gxf4 {[%emt 0:00:05]} Rxh4 {[%emt 0:00:01]} 54. Rf5 {[%emt 0:00:03]} Rh3+ {[%emt 0:00:01]} 55. Ke4 {[%emt 0:00:03]} Ra3 {[%emt 0:00:01]} 56. a5 {[%emt 0:00:01]} Ra4+ {[%emt 0:00:02]} 57. Kf3 {[%emt 0:00:01]} Kg6 {[%emt 0:00:01]} 58. Kg4 {[%emt 0:00:01]} Kh6 {[%emt 0:00:02]} 59. Rb5 {[%emt 0:00:02]} Kg7 {[%emt 0:00:04]} 60. Kg5 {[%emt 0:00:03]} Kf7 {[%emt 0:00:02]} 61. f5 {[%emt 0:00:01]} Kg7 {[%emt 0:00:02]} 62. f6+ {[%emt 0:00:08]} Kf7 {[%emt 0:00:03]} 63. Rb7+ {[%emt 0:00:01]} Kf8 {[%emt 0:00:05]} 64. Kg6 {[%emt 0:00:20]} Ke8 {[%emt 0:00:06]} 65. f7+ {[%emt 0:00:03]} Kd8 {[%emt 0:00:02]} 66. f8=Q# {[%emt 0:00:01] (Lag: Av=1.02s, max=1.4s)} 1-0

[Event "Is Bankasi Online Satranc Turn 17-18 YAS"]
[Site "T#646243Mustafa Kemal"]
[Date "2020.05.22"]
[Round "2"]
[White "Ahmetburakgurs66"]
[Black "Hakansimsek70"]
[Result "1/2-1/2"]
[WhiteElo "1620"]
[BlackElo "1620"]
[Annotator "NA RC"]
[PlyCount "160"]
[EventDate "2020.05.22"]
[EventType "swiss (blitz)"]
[TimeControl "180+2"]

1. d4 {[%emt 0:00:04]} Nf6 {[%emt 0:00:01]} 2. Nf3 {[%emt 0:00:01]} e6 {[%emt 0:00:01]} 3. c4 {[%emt 0:00:01]} d5 {[%emt 0:00:03]} 4. Nc3 {[%emt 0:00:00]} Bb4 {[%emt 0:00:02]} 5. Bg5 {[%emt 0:00:02]} O-O {[%emt 0:00:05]} 6. cxd5 {[%emt 0:00:01]} exd5 {[%emt 0:00:04]} 7. a3 {[%emt 0:00:01]} Bxc3+ {[%emt 0:00:02]} 8. bxc3 {[%emt 0:00:01]} Nbd7 {[%emt 0:00:04]} 9. e3 {[%emt 0:00:04]} Re8 {[%emt 0:00:04]} 10. Bd3 {[%emt 0:00:02]} Nf8 {[%emt 0:00:02]} 11. O-O {[%emt 0:00:02]} Ne6 {[%emt 0:00:05]} 12. Bxf6 {[%emt 0:00:05]} Qxf6 {[%emt 0:00:01]} 13. Ne5 {[%emt 0:00:01]} Ng5 {[%emt 0:00:25]} 14. f4 {[%emt 0:00:04]} Ne6 {[%emt 0:00:07]} 15. Qe1 {[%emt 0:00:05]} Nf8 {[%emt 0:00:04]} 16. Rb1 {[%emt 0:00:13]} Nd7 {[%emt 0:00:04]} 17. Rf3 {[%emt 0:00:04]} b6 {[%emt 0:00:05]} 18. Qf2 {[%emt 0:00:14]} Nxe5 {[%emt 0:00:13]} 19. fxe5 {[%emt 0:00:02]} Qe7 {[%emt 0:00:07]} 20. Rf1 {[%emt 0:00:01]} Be6 {[%emt 0:00:10]} 21. Qg3 {[%emt 0:00:02]} c5 {[%emt 0:00:19]} 22. h4 {[%emt 0:00:02]} cxd4 {[%emt 0:00:03]} 23. exd4 {[%emt 0:00:01]} Rac8 {[%emt 0:00:05]} 24. h5 {[%emt 0:00:01]} h6 {[%emt 0:00:07]} 25. a4 {[%emt 0:00:06]} Rxc3 {[%emt 0:00:02]} 26. Bh7+ {[%emt 0:00:02]} Kxh7 {[%emt 0:00:01]} 27. Rxc3 {[%emt 0:00:01]} Qb4 {[%emt 0:00:13]} 28. Qd3+ {[%emt 0:00:03]} Kh8 {[%emt 0:00:06]} 29. Ra1 {[%emt 0:00:13]} Qe7 {[%emt 0:00:17]} 30. a5 {[%emt 0:00:02]} Rb8 {[%emt 0:00:14]} 31. axb6 {[%emt 0:00:02]} axb6 {[%emt 0:00:01]} 32. Rc6 {[%emt 0:00:10]} b5 {[%emt 0:00:05]} 33. Rac1 {[%emt 0:00:02]} Rb7 {[%emt 0:00:05]} 34. Qc3 {[%emt 0:00:13]} b4 {[%emt 0:00:05]} 35. Qg3 {[%emt 0:00:11]} b3 {[%emt 0:00:15]} 36. Rb1 {[%emt 0:00:02]} Qd7 {[%emt 0:00:08]} 37. Rc3 {[%emt 0:00:10]} Qa4 {[%emt 0:00:03]} 38. Rcxb3 {[%emt 0:00:04]} Qxd4+ {[%emt 0:00:01]} 39. Kh2 {[%emt 0:00:05]} Re7 {[%emt 0:00:10]} 40. Rb8+ {[%emt 0:00:03]} Kh7 {[%emt 0:00:01]} 41. R8b4 {[%emt 0:00:09]} Qc5 {[%emt 0:00:09]} 42. Qd3+ {[%emt 0:00:02]} g6 {[%emt 0:00:02]} 43. hxg6+ {[%emt 0:00:01]} fxg6 {[%emt 0:00:01]} 44. Rb7 {[%emt 0:00:01]} Bf5 {[%emt 0:00:01]} 45. Rxe7+ {[%emt 0:00:01]} Qxe7 {[%emt 0:00:00]} 46. Qxd5 {[%emt 0:00:08]} Bxb1 {[%emt 0:00:06]} 47. Kg3 {[%emt 0:00:11]} Qg5+ {[%emt 0:00:02]} 48. Kf2 {[%emt 0:00:01]} Qf5+ {[%emt 0:00:01]} 49. Kg1 {[%emt 0:00:05]} Be4 {[%emt 0:00:03]} 50. Qd6 {[%emt 0:00:04]} Qf7 {[%emt 0:00:03]} 51. e6 {[%emt 0:00:02]} Qa7+ {[%emt 0:00:01]} 52. Kh2 {[%emt 0:00:03]} Qa8 {[%emt 0:00:03]} 53. Qd7+ {[%emt 0:00:07]} Kg8 {[%emt 0:00:05]} 54. Qf7+ {[%emt 0:00:03]} Kh8 {[%emt 0:00:00]} 55. e7 {[%emt 0:00:05]} Qb8+ {[%emt 0:00:01]} 56. Kh3 {[%emt 0:00:10]} Bf5+ {[%emt 0:00:03]} 57. g4 {[%emt 0:00:07]} Bxg4+ {[%emt 0:00:03]} 58. Kxg4 {[%emt 0:00:01]} h5+ {[%emt 0:00:01]} 59. Kg5 {[%emt 0:00:01]} Qg3+ {[%emt 0:00:01]} 60. Kh6 {[%emt 0:00:04]} Qe3+ {[%emt 0:00:02]} 61. Kxg6 {[%emt 0:00:01]} Qe4+ {[%emt 0:00:02]} 62. Kxh5 {[%emt 0:00:01]} Qe5+ {[%emt 0:00:02]} 63. Kg6 {[%emt 0:00:04]} Qg3+ {[%emt 0:00:02]} 64. Kf6 {[%emt 0:00:01]} Qf4+ {[%emt 0:00:02]} 65. Ke6 {[%emt 0:00:01]} Qc4+ {[%emt 0:00:01]} 66. Kf6 {[%emt 0:00:03]} Qf4+ {[%emt 0:00:01]} 67. Kg6 {[%emt 0:00:01]} Qg4+ {[%emt 0:00:02]} 68. Kh6 {[%emt 0:00:01]} Qh4+ {[%emt 0:00:03]} 69. Qh5 {[%emt 0:00:20]} Qxe7 {[%emt 0:00:04]} 70. Qf5 {[%emt 0:00:04]} Qd6+ {[%emt 0:00:04]} 71. Kg5 {[%emt 0:00:03]} Qg3+ {[%emt 0:00:01]} 72. Kf6 {[%emt 0:00:01]} Qd6+ {[%emt 0:00:02]} 73. Kf7 {[%emt 0:00:03]} Qc7+ {[%emt 0:00:02]} 74. Kg6 {[%emt 0:00:05]} Qd6+ {[%emt 0:00:01]} 75. Kg5 {[%emt 0:00:09]} Qg3+ {[%emt 0:00:01]} 76. Kh6 {[%emt 0:00:03]} Qh4+ {[%emt 0:00:02]} 77. Kg6 {[%emt 0:00:02]} Qg3+ {[%emt 0:00:01]} 78. Kf7 {[%emt 0:00:06]} Qc7+ {[%emt 0:00:01]} 79. Kf8 {[%emt 0:00:01]} Qd8+ {[%emt 0:00:01]} 80. Kf7 {[%emt 0:00:02]} Qc7+ {[%emt 0:00:01] (Lag: Av=0.71s, max=7.5s)} 1/2-1/2

[Event "Is Bankasi Online Satranc Turn 17-18 YAS"]
[Site "T#646243Mustafa Kemal"]
[Date "2020.05.22"]
[Round "2"]
[White "Umuterdemgundu70"]
[Black "Dogukangureke78"]
[Result "1-0"]
[WhiteElo "1620"]
[BlackElo "1620"]
[Annotator "NA RC"]
[PlyCount "59"]
[EventDate "2020.05.22"]
[EventType "swiss (blitz)"]
[TimeControl "180+2"]

1. e4 {[%emt 0:00:06]} c5 {[%emt 0:00:02]} 2. Nf3 {[%emt 0:00:02]} Nc6 {[%emt 0:00:01]} 3. d4 {[%emt 0:00:01]} cxd4 {[%emt 0:00:01]} 4. Nxd4 {[%emt 0:00:01]} Nf6 {[%emt 0:00:01]} 5. Nc3 {[%emt 0:00:01]} d6 {[%emt 0:00:01]} 6. Bg5 {[%emt 0:00:06]} e6 {[%emt 0:00:01]} 7. Qd2 {[%emt 0:00:16]} Be7 {[%emt 0:00:01]} 8. O-O-O {[%emt 0:00:04]} O-O {[%emt 0:00:01]} 9. f3 {[%emt 0:00:04]} Nxd4 {[%emt 0:00:27]} 10. Qxd4 {[%emt 0:00:03]} Qa5 {[%emt 0:00:04]} 11. h4 {[%emt 0:00:08]} Rd8 {[%emt 0:00:16]} 12. Bc4 {[%emt 0:00:22]} a6 {[%emt 0:00:31]} 13. Bb3 {[%emt 0:00:09]} b5 {[%emt 0:00:05]} 14. a3 {[%emt 0:00:01]} Bb7 {[%emt 0:00:07]} 15. g4 {[%emt 0:00:06]} Rac8 {[%emt 0:00:28]} 16. Kb1 {[%emt 0:00:05]} Qc7 {[%emt 0:00:35]} 17. h5 {[%emt 0:00:07]} Ne8 {[%emt 0:00:25]} 18. Bxe7 {[%emt 0:00:11]} Qxe7 {[%emt 0:00:00]} 19. h6 {[%emt 0:00:01]} e5 {[%emt 0:00:05]} 20. Qe3 {[%emt 0:00:04]} g6 {[%emt 0:00:04]} 21. Nd5 {[%emt 0:00:09]} Bxd5 {[%emt 0:00:02]} 22. Rxd5 {[%emt 0:00:02]} Nc7 {[%emt 0:00:01]} 23. Rd2 {[%emt 0:00:02]} Ne6 {[%emt 0:00:01]} 24. Rhd1 {[%emt 0:00:10]} Nf4 {[%emt 0:00:02]} 25. Qb6 {[%emt 0:00:06]} Rb8 {[%emt 0:00:20]} 26. Rxd6 {[%emt 0:00:03]} Rdc8 {[%emt 0:00:06]} 27. Qxa6 {[%emt 0:00:11]} Qb7 {[%emt 0:00:02]} 28. Qxb7 {[%emt 0:00:03]} Rxb7 {[%emt 0:00:00]} 29. Rd8+ {[%emt 0:00:00]} Rxd8 {[%emt 0:00:00]} 30. Rxd8# {[%emt 0:00:01] (Lag: Av=0.46s, max=1.6s)} 1-0

[Event "Is Bankasi Online Satranc Turn 17-18 YAS"]
[Site "T#646243Mustafa Kemal"]
[Date "2020.05.22"]
[Round "3"]
[White "Tunaonatnalban08"]
[Black "Kemalalpcakir74"]
[Result "1-0"]
[WhiteElo "2045"]
[BlackElo "1620"]
[Annotator "NA RC"]
[PlyCount "41"]
[EventDate "2020.05.22"]
[EventType "swiss (blitz)"]
[TimeControl "180+2"]

1. Nf3 {[%emt 0:00:05]} g6 {[%emt 0:00:14]} 2. g3 {[%emt 0:00:01]} Bg7 {[%emt 0:00:08]} 3. Bg2 {[%emt 0:00:01]} Nc6 {[%emt 0:00:02]} 4. O-O {[%emt 0:00:01]} Nf6 {[%emt 0:00:01]} 5. d3 {[%emt 0:00:01]} O-O {[%emt 0:00:01]} 6. e4 {[%emt 0:00:02]} e5 {[%emt 0:00:02]} 7. c4 {[%emt 0:00:14]} d6 {[%emt 0:00:04]} 8. Nc3 {[%emt 0:00:01]} Be6 {[%emt 0:00:07]} 9. a3 {[%emt 0:00:02]} a5 {[%emt 0:00:03]} 10. Rb1 {[%emt 0:00:02]} Nd7 {[%emt 0:00:22]} 11. b4 {[%emt 0:00:04]} axb4 {[%emt 0:00:02]} 12. axb4 {[%emt 0:00:00]} f5 {[%emt 0:00:02]} 13. Ng5 {[%emt 0:00:03]} Qe7 {[%emt 0:00:27]} 14. Nxe6 {[%emt 0:00:15]} Qxe6 {[%emt 0:00:01]} 15. Nd5 {[%emt 0:00:18]} Rac8 {[%emt 0:00:12]} 16. exf5 {[%emt 0:00:01]} Qxf5 {[%emt 0:00:43]} 17. b5 {[%emt 0:00:02]} Rfe8 {[%emt 0:00:42]} 18. bxc6 {[%emt 0:00:09]} bxc6 {[%emt 0:00:03]} 19. Ne3 {[%emt 0:00:05]} Qe6 {[%emt 0:00:03]} 20. Bxc6 {[%emt 0:00:02]} Re7 {[%emt 0:00:05]} 21. Bd5 {[%emt 0:00:02] Kemalalpcakir74 terk eder (Lag: Av=0.45s, max=0.7s)} 1-0

[Event "Is Bankasi Online Satranc Turn 17-18 YAS"]
[Site "T#646243Mustafa Kemal"]
[Date "2020.05.22"]
[Round "3"]
[White "Emrekocakaplan04"]
[Black "Kaanakbas20"]
[Result "1-0"]
[WhiteElo "1696"]
[BlackElo "1620"]
[Annotator "NA RC"]
[PlyCount "146"]
[EventDate "2020.05.22"]
[EventType "swiss (blitz)"]
[TimeControl "180+2"]

1. d4 {[%emt 0:00:02]} Nf6 {[%emt 0:00:01]} 2. c4 {[%emt 0:00:02]} e6 {[%emt 0:00:01]} 3. Nf3 {[%emt 0:00:01]} d5 {[%emt 0:00:02]} 4. g3 {[%emt 0:00:01]} Be7 {[%emt 0:00:01]} 5. Bg2 {[%emt 0:00:01]} O-O {[%emt 0:00:00]} 6. O-O {[%emt 0:00:01]} b6 {[%emt 0:00:02]} 7. b3 {[%emt 0:00:02]} Bb7 {[%emt 0:00:01]} 8. Bb2 {[%emt 0:00:01]} Nbd7 {[%emt 0:00:02]} 9. Nbd2 {[%emt 0:00:01]} Ne4 {[%emt 0:00:01]} 10. e3 {[%emt 0:00:18]} Ndf6 {[%emt 0:00:09]} 11. Ne5 {[%emt 0:00:25]} Nxd2 {[%emt 0:00:16]} 12. Qxd2 {[%emt 0:00:03]} Ne4 {[%emt 0:00:01]} 13. Qe2 {[%emt 0:00:22]} f6 {[%emt 0:00:09]} 14. Nd3 {[%emt 0:00:11]} c6 {[%emt 0:00:04]} 15. Rfd1 {[%emt 0:00:49]} Rc8 {[%emt 0:00:12]} 16. Nf4 {[%emt 0:00:17]} Qd7 {[%emt 0:00:03]} 17. Rac1 {[%emt 0:00:15]} Rfd8 {[%emt 0:00:04]} 18. Qg4 {[%emt 0:00:12]} f5 {[%emt 0:00:15]} 19. Qe2 {[%emt 0:00:08]} Bf6 {[%emt 0:00:02]} 20. f3 {[%emt 0:00:18]} Nd6 {[%emt 0:00:11]} 21. Nh5 {[%emt 0:00:06]} Be7 {[%emt 0:00:05]} 22. Re1 {[%emt 0:00:04]} Bf8 {[%emt 0:00:01]} 23. e4 {[%emt 0:00:01]} Qf7 {[%emt 0:00:02]} 24. Nf4 {[%emt 0:00:03]} dxe4 {[%emt 0:00:29]} 25. fxe4 {[%emt 0:00:00]} c5 {[%emt 0:00:03]} 26. exf5 {[%emt 0:00:02]} exf5 {[%emt 0:00:06]} 27. Bxb7 {[%emt 0:00:04]} Qxb7 {[%emt 0:00:00]} 28. d5 {[%emt 0:00:00]} Ne4 {[%emt 0:00:05]} 29. Ne6 {[%emt 0:00:01]} Re8 {[%emt 0:00:03]} 30. Qf3 {[%emt 0:00:03]} Qf7 {[%emt 0:00:02]} 31. Rf1 {[%emt 0:00:02]} g6 {[%emt 0:00:02]} 32. Rcd1 {[%emt 0:00:04]} Bh6 {[%emt 0:00:10]} 33. Rfe1 {[%emt 0:00:01]} Re7 {[%emt 0:00:12]} 34. Rxe4 {[%emt 0:00:01]} fxe4 {[%emt 0:00:01]} 35. Qc3 {[%emt 0:00:01]} Bg7 {[%emt 0:00:28]} 36. Nxg7 {[%emt 0:00:01]} Qxg7 {[%emt 0:00:00]} 37. Qxg7+ {[%emt 0:00:00]} Rxg7 {[%emt 0:00:00]} 38. Bxg7 {[%emt 0:00:00]} Kxg7 {[%emt 0:00:00]} 39. Re1 {[%emt 0:00:00]} Re8 {[%emt 0:00:02]} 40. Kf2 {[%emt 0:00:01]} Kf6 {[%emt 0:00:00]} 41. Ke3 {[%emt 0:00:01]} Ke5 {[%emt 0:00:01]} 42. Rf1 {[%emt 0:00:00]} Re7 {[%emt 0:00:01]} 43. Rf8 {[%emt 0:00:01]} b5 {[%emt 0:00:10]} 44. Rf4 {[%emt 0:00:01]} Kd6 {[%emt 0:00:05]} 45. Rxe4 {[%emt 0:00:01]} Rb7 {[%emt 0:00:02]} 46. Re6+ {[%emt 0:00:01]} Kd7 {[%emt 0:00:01]} 47. Kd3 {[%emt 0:00:08]} b4 {[%emt 0:00:15]} 48. Rc6 {[%emt 0:00:02]} Rb8 {[%emt 0:00:02]} 49. Rxc5 {[%emt 0:00:01]} Rf8 {[%emt 0:00:00]} 50. Ke3 {[%emt 0:00:04]} Re8+ {[%emt 0:00:01]} 51. Kf3 {[%emt 0:00:01]} Re1 {[%emt 0:00:01]} 52. Ra5 {[%emt 0:00:03]} Kd6 {[%emt 0:00:06]} 53. Rxa7 {[%emt 0:00:01]} Rf1+ {[%emt 0:00:00]} 54. Kg2 {[%emt 0:00:04]} Ra1 {[%emt 0:00:02]} 55. Rb7 {[%emt 0:00:03]} Rxa2+ {[%emt 0:00:01]} 56. Kh3 {[%emt 0:00:03]} Kc5 {[%emt 0:00:00]} 57. Rb5+ {[%emt 0:00:01]} Kd4 {[%emt 0:00:02]} 58. Rxb4 {[%emt 0:00:01]} h5 {[%emt 0:00:01]} 59. Rb6 {[%emt 0:00:01]} g5 {[%emt 0:00:01]} 60. Rg6 {[%emt 0:00:10]} g4+ {[%emt 0:00:03]} 61. Kh4 {[%emt 0:00:01]} Rxh2+ {[%emt 0:00:01]} 62. Kg5 {[%emt 0:00:00]} Kc3 {[%emt 0:00:05]} 63. d6 {[%emt 0:00:01]} Kxb3 {[%emt 0:00:01]} 64. c5 {[%emt 0:00:02]} Kc4 {[%emt 0:00:02]} 65. c6 {[%emt 0:00:01]} Rd2 {[%emt 0:00:05]} 66. c7 {[%emt 0:00:01]} Rd5+ {[%emt 0:00:07]} 67. Kh4 {[%emt 0:00:03]} Rc5 {[%emt 0:00:09]} 68. d7 {[%emt 0:00:01]} Rxc7 {[%emt 0:00:02]} 69. d8=Q {[%emt 0:00:01]} Rc5 {[%emt 0:00:00]} 70. Rg5 {[%emt 0:00:02]} Rc6 {[%emt 0:00:02]} 71. Rxh5 {[%emt 0:00:02]} Kb4 {[%emt 0:00:03]} 72. Qd2+ {[%emt 0:00:04]} Ka4 {[%emt 0:00:01]} 73. Qd7 {[%emt 0:00:03]} Kb4 {[%emt 0:00:02] Kaanakbas20 terk eder (Lag: Av=0.74s, max=1.3s)} 1-0